Cogmind - Beta 16 @@@ ROGUE MODE // 2025.10.26 @ 11:15:26 Player: Parallel Result: Self-destructed Performance ------------- Evolutions (2) 1000 Regions Visited (4) 800 Robots Destroyed (29) 145 Value Destroyed (598) 598 Prototype IDs (0) 0 Alien Tech Used (0) 0 Bonus (-139) -139 TOTAL SCORE: 2404 Bonus ------- Friendly Fire -139 Cogmind --------- Core Integrity 536/550 Matter 129/300 Energy 111/125 System Corruption 0% Temperature Cool (0) Movement Walking (470) Ox5 Location -8/Materials Parts ------- > --- POWER (2) -------- Light Ion Engine > --- PROPULSION (3) --- Aluminum Leg > --- UTILITY (4) ------ High-capacity Storage Unit Improved Terrain Scanner > --- WEAPON (2) ------- Field Laser Flak Cannon > --- INVENTORY (20) --- Light Ion Engine Light Deuterium Engine Medium Matter Pod (75) Sensor Array Improved Sensor Array Seismic Detector Improved Utility Shielding Light Assault Rifle Improved Light Cannon Improved Light Cannon EMP Blaster Grenade Launcher Mining Laser Katana Peak State ------------ > --- POWER ------------ Light Ion Engine > --- PROPULSION ------- Wheel Compact Wheel > --- UTILITY ---------- High-capacity Storage Unit Improved Terrain Scanner > --- WEAPON ----------- Improved Light Cannon Flak Cannon > --- INVENTORY -------- Compact Wheel Medium Matter Pod Sensor Array Seismic Detector Improved Utility Shielding Field Laser Light Assault Rifle Improved Light Cannon EMP Blaster Grenade Launcher Grenade Launcher Mining Laser Katana [Rating: 14] Favorites ----------- Power Light Ion Engine Engine Light Ion Engine Propulsion Compact Wheel Leg Aluminum Leg Wheel Compact Wheel Utility Improved Terrain Scanner Device Improved Terrain Scanner Storage High-capacity Storage Unit Weapon Improved Light Cannon Energy Gun Small Laser Ballistic Gun Light Assault Rifle Ballistic Cannon Improved Light Cannon Launcher Grenade Launcher Build | -11 -10 -10 -10 -8 ------- Run | Yrd Mat Min Sub Mat Slots Evolved 4 | . . . . 4 Power 1 | . . . . 1 Propulsion 1 | . . . . 1 Utility 2 | . . . . 2 Weapon . | . . . . . Parts Attached 21 | 7 10 1 2 1 Power 2 | 1 1 . . . Engine 2 | 1 1 . . . Core . | . . . . . Reactor . | . . . . . Propulsion 7 | 2 4 . 1 . Treads . | . . . . . Leg 1 | . . . 1 . Wheel 6 | 2 4 . . . Hover . | . . . . . Flight . | . . . . . Utility 3 | 2 1 . . . Device 1 | 1 . . . . Storage 2 | 1 1 . . . Processor . | . . . . . Hackware . | . . . . . Protection . | . . . . . Artifact . | . . . . . Weapon 9 | 2 4 1 1 1 Energy Gun 2 | 1 . . . 1 Energy Cannon . | . . . . . Ballistic Gun 1 | 1 . . . . Ballistic Cannon 4 | . 3 1 . . Launcher 2 | . 1 . 1 . Special Weapon . | . . . . . Impact Weapon . | . . . . . Slashing Weapon . | . . . . . Piercing Weapon . | . . . . . Special Melee Weapon . | . . . . . Unidentified Prototypes . | . . . . . Parts Lost 6 | . 2 1 3 . Power 1 | . 1 . . . Propulsion 4 | . 1 1 2 . Utility . | . . . . . Weapon 1 | . . . 1 . Highest Loss Streak 3 | . 2 1 3 . To Critical Strikes . | . . . . . Average Backups 12 | 3 8 15 14 14 Power 1 | . . 1 2 2 Propulsion . | 1 1 1 . . Utility 4 | . 2 4 5 5 Weapon 6 | 1 3 7 7 7 Tool/Special . | . . . . . Unused Backups 14 | 2 1 . . 11 Power 2 | . . . . 2 Propulsion 2 | 2 . . . . Utility 5 | . . . . 5 Weapon 5 | . 1 . . 4 Tool/Special . | . . . . . Average Slot Usage (%) 87 | . 97 86 82 54 Engine 13 | . 13 14 14 9 Leg 2 | . . . 9 9 Wheel 14 | . 27 15 2 . Device 13 | . 13 14 14 9 Storage 13 | . 14 14 14 9 Ballistic Gun 2 | . 9 . . . Ballistic Cannon 20 | . 15 27 15 9 Launcher 3 | . . . 12 9 Peak Build Rating 14 | 9 12 14 13 14 Average Rating 11 | 6 10 13 11 12 On Entrance 9 | . 9 11 13 12 Avg Prop Armor Cover (%) . | . . . . . Naked Turns . | . . . . . Heaviest Build 54 | 13 54 54 54 53 Greatest Support 32 | 20 32 26 16 10 Greatest Overweight (x) 17 | . 4 3 17 5 Average Overweight (x) 1 | . . 2 5 5 Largest Inventory Capacity 20 | 8 20 20 20 20 Average Capacity 18 | 7 18 20 20 20 Most Carried 16 | 5 13 16 16 14 Average Carried 12 | 3 8 15 14 14 Final Capacity 20 | 8 20 20 20 20 Final Carried 16 | 5 10 16 14 14 Class Distribution -------------------- 100% | Mutant Dominant Class ---------------- Mutant | -10/Materials Mutant | -10/Mines Mutant | -10/Subcaves Mutant | -8/Materials Resources | -11 -10 -10 -10 -8 ----------- Run | Yrd Mat Min Sub Mat Matter Collected 933 | 283 316 307 27 . Remotely . | . . . . . Salvage Created 560 | 179 223 121 37 . Parts 36 | 15 15 5 1 . Haulers Intercepted 1 | . 1 . . . Recyclers Shooed 1 | 1 . . . . Parts Field Recycled . | . . . . . Retrieved Matter . | . . . . . Parts Self-Destructed . | . . . . . Prevented . | . . . . . Parts Restored . | . . . . . Kills | -11 -10 -10 -10 -8 ------- Run | Yrd Mat Min Sub Mat Combat Hostiles Destroyed 18 | . 10 5 3 . Cannons 13 | . 7 5 1 . AOE 5 | . 3 . 2 . Classes Destroyed 9 | 2 6 . 1 . Worker 2 | . 2 . . . Builder 1 | . 1 . . . Tunneler 4 | 4 . . . . Hauler 1 | . 1 . . . Recycler 1 | 1 . . . . Watcher 1 | . 1 . . . Swarmer 6 | . 6 . . . Grunt 9 | . 4 5 . . Subdweller 3 | . . . 3 . Thug 1 | . . . 1 . Best Kill Streak 5 | 3 5 3 3 . Combat Bots Only 5 | . 5 3 3 . Max Kills in Single Turn 2 | 1 2 1 1 . Gunslinging . | . . . . . Exploded 2 | . 2 . 1 . Melee . | . . . . . Uniques/NPCs Destroyed . | . . . . . Combat | -11 -10 -10 -10 -8 -------- Run | Yrd Mat Min Sub Mat Hostile Shots Fired 101 | . 70 13 14 4 Missed 25 | . 19 3 2 1 Hits 76 | . 51 10 12 3 Projectile 76 | . 51 10 12 3 Critical Strikes 3 | . 1 1 1 . Damage Taken 1022 | . 561 127 289 45 Core 226 | . 125 . 87 14 Absorbed by Shields . | . . . . . Core Remaining (%) 57 | 100 . . 15 . Volleys Fired 73 | 13 39 13 7 1 Largest 2 | 2 2 2 2 2 Hottest 70 | 60 66 70 67 67 Shots Fired 146 | 26 78 26 14 2 Gun 42 | 26 16 . . . Cannon 92 | . 58 26 7 1 Launcher 12 | . 4 . 7 1 Special . | . . . . . Kinetic 121 | 13 74 26 7 1 Thermal 13 | 13 . . . . Explosive 12 | . 4 . 7 1 Electromagnetic . | . . . . . Robot Hit Streak 10 | 3 10 7 6 . Robot Miss Streak 7 | 2 6 7 3 . Penetration Max . | . . . . . Secondary Targets . | . . . . . Shots Hit Robots 85 | 13 44 19 9 . Core Hits 55 | 6 18 18 11 2 Critical Kills . | . . . . . Critical Parts Destroyed . | . . . . . Critical Strikes 1 | . 1 . . . Blast 1 | . 1 . . . Melee Attacks . | . . . . . Impact . | . . . . . Slashing . | . . . . . Piercing . | . . . . . Sneak Attacks . | . . . . . Combat Hostiles . | . . . . . Follow-up Attacks . | . . . . . Damage Inflicted 2030 | 140 944 368 515 63 Guns 228 | 140 88 . . . Cannons 1221 | . 668 368 166 19 Explosions 581 | . 188 . 349 44 Melee . | . . . . . Ramming . | . . . . . Kinetic 1339 | 30 756 368 166 19 Thermal 110 | 110 . . . . Explosive 581 | . 188 . 349 44 Electromagnetic . | . . . . . Impact . | . . . . . Slashing . | . . . . . Piercing . | . . . . . Highest Corruption . | . . . . . Average Corruption . | . . . . . Corruption Purged . | . . . . . Corruption Blocked . | . . . . . Overload Shots . | . . . . . Overflow Damage 19 | . 15 . 4 . Projectiles 15 | . 15 . . . Explosions 4 | . . . 4 . Melee . | . . . . . Knockbacks 26 | . 12 9 5 . Impact . | . . . . . Kinetic 23 | . 10 8 5 . Secondary 3 | . 2 1 . . Self-Inflicted Damage 100 | . 61 . 39 . Shots 5 | . 3 . 2 . Rammed . | . . . . . Targets Rammed . | . . . . . Kicked . | . . . . . Crushed . | . . . . . Highest Temperature 144 | 40 144 105 . 15 Average Temperature 34 | 18 38 35 . 10 Received Heat Transfer 369 | . 180 90 72 27 Siege Activations . | . . . . . Martial Activations . | . . . . . Shielding Activations . | . . . . . Robots Disrupted . | . . . . . Combat Hostiles . | . . . . . Robots Corrupted . | . . . . . Combat Hostiles . | . . . . . Parts Fried . | . . . . . Impact Corruptions . | . . . . . Robots Melted . | . . . . . Combat Hostiles . | . . . . . Parts Melted . | . . . . . Heat Transferred 250 | 250 . . . . Parts Sabotaged . | . . . . . Parts Stolen . | . . . . . Parts Stripped . | . . . . . Power Chain Reactions . | . . . . . Alert | -11 -10 -10 -10 -8 ------- Run | Yrd Mat Min Sub Mat Maximum Alert Level 1 | . 1 . . . Low Security (%) 84 | 100 51 100 . 100 Level 1 15 | . 48 . . . Level 2 . | . . . . . Level 3 . | . . . . . Level 4 . | . . . . . Level 5 . | . . . . . High Security . | . . . . . Max Security . | . . . . . Peak Influence 281 | 10 281 98 . 6 Initial 78 | . . 78 . . Average 62 | 2 155 21 . 1 Influence Increases 561 | 25 409 121 . 6 Destroy 0b10 Robot/C 300 | . 200 100 . . Destroy 0b10 Robot/NC 50 | 25 25 . . . Destroy Leader 64 | . 44 20 . . Successful Hack 7 | . 7 . . . Disable Machine 60 | . 60 . . . Destroy Structure 20 | . 13 1 . 6 Partial Spotted 15 | . 15 . . . Lose Combat Pursuer 45 | . 45 . . . Influence Decreases 555 | 25 208 322 . . Entered New Map 123 | . . 123 . . Time Decay 402 | 25 188 189 . . Lost Part 30 | . 20 10 . . Squads Dispatched 3 | . 2 1 . . Investigation 1 | . . 1 . . Extermination . | . . . . . Reinforcement 2 | . 2 . . . Assault . | . . . . . Garrison . | . . . . . Intercept . | . . . . . Searches Triggered . | . . . . . Construction Impeded . | . . . . . Haulers Reinforced . | . . . . . Active Scanning Responses . | . . . . . Cargo Convoy Interrupts . | . . . . . Stealth | -11 -10 -10 -10 -8 --------- Run | Yrd Mat Min Sub Mat Distress Signals 1 | . 1 . . . Communications Jammed . | . . . . . Distress Signals . | . . . . . Times Spotted 31 | . 21 5 3 2 Peak Tracking Total 5 | . 5 3 2 2 Tactical Retreats 2 | . 2 . . . Traps | -11 -10 -10 -10 -8 ------- Run | Yrd Mat Min Sub Mat Traps Triggered 2 | . 2 . . . Indirectly . | . . . . . Trap Hack Attempts . | . . . . . Triggered . | . . . . . Disarmed . | . . . . . Reprogrammed . | . . . . . Reused . | . . . . . Traps Extracted . | . . . . . Installed . | . . . . . Triggered . | . . . . . Machines | -11 -10 -10 -10 -8 ---------- Run | Yrd Mat Min Sub Mat Machines Disabled 4 | . 4 . . . Max in Single Turn 2 | . 2 . . . Machines Repaired . | . . . . . Machines Dismantled . | . . . . . Machines Sabotaged . | . . . . . Overloaded Fab Kills . | . . . . . Hacking | -11 -10 -10 -10 -8 --------- Run | Yrd Mat Min Sub Mat Machines Accessed 4 | . 3 1 . . Terminals 3 | . 3 . . . Fabricators . | . . . . . Repair Stations . | . . . . . Recycling Units . | . . . . . Scanalyzers . | . . . . . Garrison Access . | . . . . . Total Hacks 7 | . 6 1 . . Successful 4 | . 3 1 . . Failed 3 | . 3 . . . Catastrophic 2 | . 2 . . . Database Lockouts . | . . . . . Manual 6 | . 6 . . . Terminals 6 | . 6 . . . Fabricators . | . . . . . Repair Stations . | . . . . . Recycling Units . | . . . . . Scanalyzers . | . . . . . Garrison Access . | . . . . . Terminal Hacks 2 | . 1 1 . . Open Door 1 | . . 1 . . Branch Access Points 1 | . 1 . . . Fabricator Hacks . | . . . . . Repair Station Hacks . | . . . . . Recycling Unit Hacks . | . . . . . Scanalyzer . | . . . . . Garrison Access Hacks . | . . . . . Unauthorized Hacks 2 | . 2 . . . Terminals 2 | . 2 . . . Botnet 2 | . 2 . . . Fabricators . | . . . . . Repair Stations . | . . . . . Recycling Units . | . . . . . Scanalyzers . | . . . . . Garrison Access . | . . . . . Data Cores Recovered . | . . . . . Used . | . . . . . Hacking Detections 2 | . 2 . . . Full Trace Events . | . . . . . Feedback Events . | . . . . . Feedback Blocked . | . . . . . Robot Schematics Acquired . | . . . . . Robots Built . | . . . . . Authchips . | . . . . . Time . | . . . . . Total Robot Build Rating . | . . . . . Part Schematics Acquired . | . . . . . Parts Built . | . . . . . Authchips . | . . . . . Time . | . . . . . Total Part Build Rating . | . . . . . Part Studies Acquired . | . . . . . Parts Repaired . | . . . . . Time . | . . . . . Parts Recycled . | . . . . . Recycled Matter . | . . . . . Retrieved Matter . | . . . . . Retrieved Components . | . . . . . Parts Scanalyzed . | . . . . . Part Schematics Acquired . | . . . . . Parts Damaged . | . . . . . Bothacking | -11 -10 -10 -10 -8 ------------ Run | Yrd Mat Min Sub Mat Used RIF Installer . | . . . . . Robots Hacked . | . . . . . Non-combat . | . . . . . Combat . | . . . . . Robot Hacks Applied . | . . . . . Relay Couplers Released . | . . . . . Fabnet Peak Effective % . | . . . . . Robots Rewired . | . . . . . Allies Hacked . | . . . . . Hacks Repelled . | . . . . . Allies | -11 -10 -10 -10 -8 -------- Run | Yrd Mat Min Sub Mat Total Allies 2 | . . 2 . . Largest Group 2 | . . 2 2 . Highest-Rated Group 43 | . . 43 43 . Highest-Rated Ally 31 | . . 31 31 . Total Orders . | . . . . . Ally Attacks 4 | . . . 4 . Total Damage 55 | . . . 55 . Kills . | . . . . . Allies Corrupted . | . . . . . Allies Melted . | . . . . . Intel | -11 -10 -10 -10 -8 ------- Run | Yrd Mat Min Sub Mat Active Infowar (turns) 1871 | 63 467 843 446 52 Terrain 1871 | 63 467 843 446 52 Robot Analysis Total . | . . . . . Derelict Logs Recovered 1 | . . 1 . . Drone Launches . | . . . . . Drone Recoveries . | . . . . . Exploration | -11 -10 -10 -10 -8 ------------- Run | Yrd Mat Min Sub Mat Turns Passed 1944 | 121 482 843 446 52 Spaces Moved 741 | 75 317 260 79 10 Core 15 | 9 . . 6 . Treads . | . . . . . Legs 50 | . . . 40 10 Wheels 676 | 66 317 260 33 . Hover . | . . . . . Flight . | . . . . . Fastest Speed 50 | 50 80 105 145 470 Average Speed 145 | 76 101 140 366 470 Slowest Speed 900 | 80 140 145 900 470 Overloaded Moves . | . . . . . Propulsion Burnouts . | . . . . . Robots Hopped . | . . . . . Potential Cave-ins . | . . . . . Cave-ins Triggered . | . . . . . Exploration Rate (%) 24 | 4 50 58 8 4 Regions Visited 4 Branch Regions 2 Pre-discovered Areas . | . . . . . Known Exits Taken 1 | . 1 . . . Unknown Exits Taken 3 | 1 . 1 1 . Scrap Searched 1 | . . 1 . . Spaces Dug . | . . . . . Terrain Destroyed 53 | . 9 1 37 6 Melee . | . . . . . Projectile 3 | . 2 1 . . AOE 50 | . 7 . 37 6 Terrain Rammed . | . . . . . Walls Destroyed . | . . . . . Machines Disabled . | . . . . . Actions | -11 -10 -10 -10 -8 --------- Run | Yrd Mat Min Sub Mat Total 1468 | 116 404 712 224 12 Wait 578 | 6 7 431 134 . Move 737 | 74 316 259 78 10 Hop . | . . . . . Pick Up 40 | 14 18 7 1 . Fast Attach . | . . . . . Attach 21 | 7 11 . 3 . Detach 1 | . 1 . . . Swap 9 | . 6 1 1 1 Drop 9 | 2 6 1 . . Fire 73 | 13 39 13 7 1 Melee . | . . . . . Ram . | . . . . . Kick . | . . . . . Crush . | . . . . . Escape Stasis . | . . . . . Rewire . | . . . . . Trap . | . . . . . Miscellaneous . | . . . . . Route ------- -11/Scrapyard -10/Materials (discovered 3 exits: [*Mat] / *Min x2) -10/Mines (discovered 2 exits: [*Mat] / [*Sub]) -10/Subcaves -8/Materials History --------- Turn | Location | Event 9 | -11/Scrapyard | Discovered new exit (range 15) 122 | -11/Scrapyard | Entered Materials 122 | -10/Materials | Discovered new exit (range 14) 309 | -10/Materials | Build established: Mutant 319 | -10/Materials | Discovered new exit (range 9) 540 | -10/Materials | Identified exit to Mines 604 | -10/Materials | Entered Mines 609 | -10/Mines | Met a Derelict shopkeep closing up shop 973 | -10/Mines | Found a hidden stash of uninstalled traps 1244 | -10/Mines | Discovered new exit (range 8) 1351 | -10/Mines | Discovered new exit (range 5) 1447 | -10/Mines | Entered Subcaves 1447 | -10/Subcaves | Accompanied by 2 allies 1452 | -10/Subcaves | Led the pair of lost Derelicts to an unsafe place 1464 | -10/Subcaves | A swath of the cavern ceiling suddenly collapsed 1501 | -10/Subcaves | Core integrity fell below 50% 1508 | -10/Subcaves | Ambushed by Subdweller buried in earth 1512 | -10/Subcaves | Core integrity fell below 20% 1535 | -10/Subcaves | Lost 3 parts (2n1w) 1837 | -10/Subcaves | Discovered new exit (range 15) 1858 | -10/Subcaves | Shifting Twisted Machinery released Shrapnel Trap 1893 | -10/Subcaves | Entered Materials 1893 | -8/Materials | Evolved 4 slots: Power x1, Propulsion x1, Utility x2 1945 | -8/Materials | Self-destructed Last Messages --------------- 01521_ The unstable cave ceiling collapses. 01524_ Subatomizers dissect the Disposable Heat Sink. 01555_ The unstable cave ceiling collapses. 01562_ Subatomizers dissect the Disposable Heat Sink. 01574_ Acquired Aluminum Leg. 01577_ Subatomizers dissect the Disposable Heat Sink. 01587_ Subatomizers dissect the Disposable Heat Sink, destroying it. 01607_ The unstable cave ceiling collapses. 01799_ Acquired 27 matter. 01837_ EXIT=FOUND Shrapnel Trap falls loose from the Twisted Machinery. PARAMETERS=POWER+1,PROPULSION+1,UTILITY+2 LOCATION=UNKNOWN GOAL=ESCAPE 01920_ K-01 Serf collects debris. Map ----- +----------------------------------------------------+ | ?????????????????????????????????????????????????? | | ????????????????????????????????#????????????????? | | ?????????????????????????????????????????????????? | | ?????????????????????????????????????????????????? | | ?????????????????????????????????????????????????? | | ?????????????????????????????????????????????????? | | ?????????????????????????????????????????????????? | | ???????????????????????#?????????????????????????? | | ??????????????????????#????????????#?????????????? | | ?????????????????????????????????????????????????? | | ????????????????????????????????????? ???????????? | | ?????????????????????????#???????????????????????? | | ?????????????????????????????????????????????????? | | ???????????????#??????????#####??????????????????? | | ??????????????????????????# #??????????????????? | | ???????????????????????#??# #??????? ??????????? | | ??????????????????????????# #??????? ??????????? | | ?????????????????#??##????# #??????????????????? | | ???????????#??????????????# #??????????????????? | | ??????????????????????????# #?????"????????????? | | ???????????#?#????######### #??????????????????? | | ??????????????????"""" # #??????????????????? | | ????????????????# """" # #??????????????????? | | ????????????????# """" # ## #??????????? | | ????????????????# + ???????? | | ????????????????# @# ???????? | | ????????????????# # ???????? | | ????????????????# # ???????? | | ????????????????# # != ????????? | | ????????????????########### = ????????? | | ??????????????????#??????## !!! ????????? | | ????????????????????????#?# !!! ?????????? | | ??????????????????????????# !!! ?????????? | | ??????????????????????????# ??????????? | | ??????????????????????????? ??????????? | | ???????????????????????????###########???????????? | | ?????????????????????????????????????????????????? | | ?????????????????????????????????????????????????? | | ?????????????????????????????????????????????????? | | ?????????????????????????????????????????????????? | | ?????????????????????????????????????????????????? | | ?????????????????????????????????????????????????? | | ?????????????????????????????????????????????????? | | ?????????????????????????????????????????????????? | | ?????????????????????????????????????????????????? | | ?????????????????????????????????????????????????? | | ?????????????????????????????????????????????????? | | ?????????????????????????????????????????????????? | | ?????????????????????????????????????????????????? | | ?????????????????????????????????????????????????? | +----------------------------------------------------+ Best States ------------- Heat Dissipation 31 Energy Generation 10 Energy Capacity 250 Matter Stores 300 Matter Capacity 300 Sight Range 16 Terrain Scan Range 16 Terrain Scan Density 10 Evasion (%) 50 Item Schematics ----------------- None Robot Schematics ------------------ None Fabricated ------------ Nothing Repaired ---------- Nothing Studied --------- None Alien Tech Used ----------------- None Achievements -------------- Bumper Bots Do Not Disturb Challenges ------------ None Game ------ Seed TiamatFieldMultitool Manual? 0 Play Time 00:13:07 Cumulative 37.1 hours Start 2025.10.26 @ 11:02:05 End 2025.10.26 @ 11:15:26 Sessions 1 Manual Loads 0 Difficulty Rogue Special Mode None Game No. 39 Rogue 29 Adventurer 10 Explorer 0 Win Type - Total 0 Types 0/0/0/0/0/0/0/0/0/0 Lore% 31 Gallery% 28 Achievement% 20 Wizard Run 0 Options --------- Layout 1 ASCII 0 Keyboard 0 Movement Mouse Keybinds 0 Fullscreen 2 Font 32/Smallcaps Map View 50x35 Zoom Use 0% Tactical HUD 1 Map Filters NONE Filters NONE Steam 1 RUN: 638b629e-3f2c-40c1-bef6-78ee1956f6f4